fUST/lending_fUST_20250718
["ID","MTS","AMOUNT","RATE_DAILY","PERIOD"]
[372904060,1752798639991,-460.0,0.00016712,2]
[372904061,1752798640002,-460.0,0.00016712,2]
[372904062,1752798640014,-844.15,0.00016712,2]
[372904063,1752798640027,-460.0,0.00016712,2]
[372904064,1752798640039,-1001.67,0.00016712,2]
[372904065,1752798640052,-460.0,0.00016712,2]
[372904066,1752798640063,-792.58,0.00016712,2]
[372904067,1752798640073,-1053.41,0.00016712,2]
[372904068,1752798640083,-460.0,0.00016712,2]
[372904069,1752798640094,-460.0,0.00016712,2]
[372904070,1752798640106,-460.0,0.00016712,2]
[372904071,1752798640117,-460.0,0.00016712,2]
[372904072,1752798640128,-460.0,0.00016712,2]
[372904073,1752798640139,-2191.97,0.00016712,2]
[372904074,1752798640150,-460.0,0.00016712,2]
[372904075,1752798640160,-211.52,0.00016712,2]
[372904076,1752798640171,-460.0,0.00016712,2]
[372904077,1752798640186,-865.09,0.00016976,3]
[372904078,1752798640197,-580.76,0.00016976,3]
[372904079,1752798640208,-460.0,0.00016986,2]
[372904080,1752798640220,-460.0,0.00016986,2]
[372904081,1752798640231,-460.0,0.00016986,2]
[372904082,1752798640242,-460.0,0.00016986,2]
[372904084,1752798640256,-460.0,0.00016986,2]
[372904086,1752798640267,-460.0,0.00016986,2]
[372904088,1752798640278,-460.0,0.00016986,2]
[372904089,1752798640289,-460.0,0.00016986,2]
[372904090,1752798640300,-460.0,0.00016986,2]
[372904091,1752798640311,-295.99089823,0.00016986,2]
[372904092,1752798640322,-460.0,0.00016986,2]
[372904094,1752798640333,-460.0,0.00016986,2]
[372904096,1752798640344,-510.05651254,0.00016986,2]
[372904098,1752798640355,-460.0,0.00016986,2]
[372904100,1752798640366,-460.0,0.00016986,2]
[372904102,1752798640377,-460.0,0.00016986,2]
[372904105,1752798640388,-460.0,0.00016986,2]
[372904107,1752798640398,-1073.82,0.00016986,2]
[372904109,1752798640409,-460.0,0.00016986,2]
[372904111,1752798640419,-460.0,0.00016986,2]
[372904113,1752798640430,-1365.5,0.00016986,2]
[372904115,1752798640441,-1658.65,0.00016986,2]
[372904117,1752798640452,-470.10029292,0.00016986,2]
[372904120,1752798640462,-460.0,0.00016986,2]
[372904122,1752798640473,-671.81,0.00016986,2]
[372904124,1752798640484,-460.0,0.00016986,2]
[372904126,1752798640495,-460.0,0.00016986,2]
[372904128,1752798640506,-1009.31,0.00016986,2]
[372904130,1752798640516,-460.0,0.00016986,2]
[372904132,1752798640527,-460.0,0.00016986,2]
[372904134,1752798640537,-460.0,0.00016986,2]
[372904137,1752798640548,-460.0,0.00016986,2]
[372904139,1752798640559,-460.0,0.00016986,2]
[372904141,1752798640570,-196.2332407,0.00016986,2]
[372904143,1752798640581,-460.0,0.00016986,2]
[372904145,1752798640592,-1119.69,0.00016986,2]
[372904147,1752798640602,-460.0,0.00016986,2]
[372904149,1752798640612,-1811.78,0.00016986,2]
[372904152,1752798640623,-987.27,0.00016986,2]
[372904154,1752798640634,-460.0,0.00016986,2]
[372904156,1752798640644,-257.71,0.00016986,2]
[372904158,1752798640655,-460.0,0.00016986,2]
[372904160,1752798640665,-460.0,0.00016986,2]
[372904162,1752798640676,-460.0,0.00016986,2]
[372904164,1752798640687,-460.0,0.00016986,2]
[372904167,1752798640697,-460.0,0.00016986,2]
[372904169,1752798640708,-3190.8,0.00016986,2]
[372904171,1752798640718,-460.0,0.00016986,2]
[372904173,1752798640729,-294.54,0.00016986,2]
[372904174,1752798640882,-460.0,0.00016986,2]
[372904175,1752798640898,-844.15,0.00016986,2]
[372904176,1752798640907,-460.0,0.00016986,2]
[372904177,1752798640917,-1001.67,0.00016986,2]
[372904178,1752798640926,-460.0,0.00016986,2]
[372904179,1752798640936,-792.58,0.00016986,2]
[372904180,1752798640945,-1053.41,0.00016986,2]
[372904181,1752798640954,-460.0,0.00016986,2]
[372904182,1752798640963,-460.0,0.00016986,2]
[372904183,1752798640972,-460.0,0.00016986,2]
[372904184,1752798640982,-460.0,0.00016986,2]
[372904185,1752798640991,-365.85,0.00016986,2]
[372904186,1752798641000,-2191.97,0.00016986,2]
[372904187,1752798641009,-460.0,0.00016986,2]
[372904188,1752798641017,-460.0,0.00016986,2]
[372904189,1752798641026,-500.0,0.00017118,2]
[372904190,1752798641036,-500.0,0.00017123,2]
[372904191,1752798641044,-460.0,0.0001726,2]
[372904192,1752798641055,-460.0,0.0001726,2]
[372904193,1752798641065,-460.0,0.0001726,2]
[372904194,1752798641073,-460.0,0.0001726,2]
[372904195,1752798641082,-460.0,0.0001726,2]
[372904196,1752798641090,-460.0,0.0001726,2]
[372904197,1752798641099,-460.0,0.0001726,2]
[372904198,1752798641117,-460.0,0.0001726,2]
[372904199,1752798641138,-460.0,0.0001726,2]
[372904200,1752798641150,-460.0,0.0001726,2]
[372904201,1752798641159,-1073.82,0.0001726,2]
[372904202,1752798641168,-460.0,0.0001726,2]
[372904203,1752798641180,-460.0,0.0001726,2]
[372904204,1752798641190,-1365.5,0.0001726,2]
[372904205,1752798641200,-1658.65,0.0001726,2]
[372904206,1752798641210,-460.0,0.0001726,2]
[372904207,1752798641219,-671.81,0.0001726,2]
[372904208,1752798641228,-460.0,0.0001726,2]
[372904209,1752798641237,-460.0,0.0001726,2]
[372904210,1752798641245,-1009.31,0.0001726,2]
[372904211,1752798641259,-460.0,0.0001726,2]
[372904212,1752798641269,-460.0,0.0001726,2]
[372904213,1752798641278,-460.0,0.0001726,2]
[372904214,1752798641288,-460.0,0.0001726,2]
[372904215,1752798641299,-460.0,0.0001726,2]
[372904216,1752798641308,-460.0,0.0001726,2]
[372904217,1752798641317,-1119.69,0.0001726,2]
[372904218,1752798641327,-460.0,0.0001726,2]
[372904219,1752798641336,-1811.78,0.0001726,2]
[372904220,1752798641345,-987.27,0.0001726,2]
[372904221,1752798641355,-460.0,0.0001726,2]
[372904222,1752798641364,-460.0,0.0001726,2]
[372904223,1752798641373,-460.0,0.0001726,2]
[372904224,1752798641383,-460.0,0.0001726,2]
[372904225,1752798641392,-460.0,0.0001726,2]
[372904226,1752798641401,-460.0,0.0001726,2]
[372904227,1752798641410,-3190.8,0.0001726,2]
[372904228,1752798641419,-460.0,0.0001726,2]
[372904229,1752798641431,-460.0,0.0001726,2]
[372904230,1752798641441,-844.15,0.0001726,2]
[372904231,1752798641450,-460.0,0.0001726,2]
[372904232,1752798641459,-1001.67,0.0001726,2]
[372904233,1752798641468,-460.0,0.0001726,2]
[372904234,1752798641477,-792.58,0.0001726,2]
[372904235,1752798641486,-1053.41,0.0001726,2]
[372904236,1752798641494,-460.0,0.0001726,2]
[372904237,1752798641503,-460.0,0.0001726,2]
[372904238,1752798641513,-460.0,0.0001726,2]
[372904239,1752798641523,-460.0,0.0001726,2]
[372904240,1752798641532,-2191.97,0.0001726,2]
[372904241,1752798641541,-460.0,0.0001726,2]
[372904242,1752798641551,-500.0,0.00017453,2]
[372904243,1752798641560,-449.91707579,0.00017534,2]
[372904244,1752798641569,-460.0,0.00017534,2]
[372904245,1752798641578,-460.0,0.00017534,2]
[372904246,1752798641587,-472.66,0.00017534,2]
[372904247,1752798641596,-460.0,0.00017534,2]
[372904248,1752798641604,-460.0,0.00017534,2]
[372904249,1752798641613,-1073.82,0.00017534,2]
[372904250,1752798641622,-486.74287168,0.00017534,2]
[372904251,1752798641631,-460.0,0.00017534,2]
[372904252,1752798641640,-1365.5,0.00017534,2]
[372904253,1752798641649,-1658.65,0.00017534,2]
[372904254,1752798641657,-460.0,0.00017534,2]
[372904255,1752798641666,-671.81,0.00017534,2]
[372904256,1752798641675,-460.0,0.00017534,2]
[372904257,1752798641684,-460.0,0.00017534,2]
[372904258,1752798641692,-1009.31,0.00017534,2]
[372904259,1752798641699,-460.0,0.00017534,2]
[372904260,1752798641707,-460.0,0.00017534,2]
[372904261,1752798641716,-460.0,0.00017534,2]
[372904262,1752798641722,-460.0,0.00017534,2]
[372904263,1752798641730,-460.0,0.00017534,2]
[372904264,1752798641737,-460.0,0.00017534,2]
[372904265,1752798641744,-1119.69,0.00017534,2]
[372904266,1752798641751,-460.0,0.00017534,2]
[372904267,1752798641761,-1811.78,0.00017534,2]
[372904268,1752798641770,-987.27,0.00017534,2]
[372904269,1752798641780,-460.0,0.00017534,2]
[372904270,1752798641789,-460.0,0.00017534,2]
[372904271,1752798641799,-460.0,0.00017534,2]
[372904272,1752798641809,-460.0,0.00017534,2]
[372904273,1752798641818,-460.0,0.00017534,2]
[372904274,1752798641828,-361.0945519,0.00017534,2]
[372904275,1752798641837,-3190.8,0.00017534,2]
[372904276,1752798641847,-460.0,0.00017534,2]
[372904277,1752798641856,-460.0,0.00017534,2]
[372904278,1752798641866,-844.15,0.00017534,2]
[372904279,1752798641876,-460.0,0.00017534,2]
[372904280,1752798641886,-1001.67,0.00017534,2]
[372904281,1752798641896,-460.0,0.00017534,2]
[372904282,1752798641906,-792.58,0.00017534,2]
[372904283,1752798641915,-1053.41,0.00017534,2]
[372904284,1752798641927,-460.0,0.00017534,2]
[372904285,1752798641937,-460.0,0.00017534,2]
[372904286,1752798641946,-460.0,0.00017534,2]
[372904287,1752798641956,-460.0,0.00017534,2]
[372904288,1752798641965,-2191.97,0.00017534,2]
[372904289,1752798641974,-460.0,0.00017534,2]
[372904290,1752798641984,-1000.0,0.00017568,2]
[372904291,1752798641993,-303.55845171,0.0001765,2]
[372904292,1752798642003,-703.55635699,0.00017666,2]
[372904293,1752798642013,-460.0,0.00017808,2]
[372904294,1752798642022,-460.0,0.00017808,2]
[372904295,1752798642031,-460.0,0.00017808,2]
[372904296,1752798642041,-227.50830199,0.00017808,2]
[372904297,1752798642051,-1073.82,0.00017808,2]
[372904298,1752798642060,-465.1845957,0.00017808,2]
[372904299,1752798642070,-1365.5,0.00017808,2]
[372904300,1752798642079,-1658.65,0.00017808,2]
[372904301,1752798642095,-314.67,0.00017808,2]
[372904302,1752798642117,-671.81,0.00017808,2]
[372904303,1752798642131,-460.0,0.00017808,2]
[372904304,1752798642140,-460.0,0.00017808,2]
[372904305,1752798642149,-1009.31,0.00017808,2]
[372904306,1752798642157,-460.0,0.00017808,2]
[372904307,1752798642167,-590.30261268,0.00017808,2]
[372904308,1752798642176,-460.0,0.00017808,2]
[372904309,1752798642186,-460.0,0.00017808,2]
[372904310,1752798642196,-460.0,0.00017808,2]
[372904311,1752798642205,-460.0,0.00017808,2]
[372904312,1752798642214,-1119.69,0.00017808,2]
[372904313,1752798642224,-460.0,0.00017808,2]
[372904314,1752798642234,-1811.78,0.00017808,2]
[372904315,1752798642242,-987.27,0.00017808,2]
[372904316,1752798642252,-460.0,0.00017808,2]
[372904317,1752798642260,-460.0,0.00017808,2]
[372904318,1752798642269,-460.0,0.00017808,2]
[372904319,1752798642278,-460.0,0.00017808,2]
[372904320,1752798642287,-460.0,0.00017808,2]
[372904321,1752798642296,-3190.8,0.00017808,2]
[372904322,1752798642305,-460.0,0.00017808,2]
[372904323,1752798642315,-472.07011707,0.00017808,2]
[372904324,1752798642325,-844.15,0.00017808,2]
[372904325,1752798642334,-460.0,0.00017808,2]
[372904326,1752798642343,-1001.67,0.00017808,2]
[372904327,1752798642353,-460.0,0.00017808,2]
[372904328,1752798642362,-792.58,0.00017808,2]
[372904329,1752798642371,-1053.41,0.00017808,2]
[372904330,1752798642381,-460.0,0.00017808,2]
[372904331,1752798642389,-460.0,0.00017808,2]
[372904332,1752798642398,-460.0,0.00017808,2]
[372904334,1752798642406,-460.0,0.00017808,2]
[372904335,1752798642415,-2191.97,0.00017808,2]
[372904336,1752798642423,-460.0,0.00017808,2]
[372904337,1752798642432,-500.0,0.00017822,2]
[372904339,1752798642441,-420.0,0.00017963,2]
[372904340,1752798642450,-608.26729649,0.00017982,2]
[372904341,1752798642459,-22629.92545144,0.00018,2]
[372904342,1752798642469,-12694.18448564,0.00018,2]
[372904343,1752798642478,-460.0,0.00018082,2]
[372904344,1752798642489,-441.27602412,0.00018082,2]
[372904345,1752798642498,-460.0,0.00018082,2]
[372904346,1752798642507,-1073.82,0.00018082,2]
[372904347,1752798642516,-1365.5,0.00018082,2]
[372904348,1752798642525,-1658.65,0.00018082,2]
[372904349,1752798642534,-671.81,0.00018082,2]
[372904350,1752798642543,-460.0,0.00018082,2]
[372904351,1752798642554,-460.0,0.00018082,2]
[372904352,1752798642563,-1009.31,0.00018082,2]
[372904354,1752798642573,-460.0,0.00018082,2]
[372904356,1752798642582,-460.0,0.00018082,2]
[372904358,1752798642591,-460.0,0.00018082,2]
[372904360,1752798642601,-460.0,0.00018082,2]
[372904362,1752798642610,-460.0,0.00018082,2]
[372904364,1752798642619,-1119.69,0.00018082,2]
[372904366,1752798642628,-460.0,0.00018082,2]
[372904367,1752798642636,-1811.78,0.00018082,2]
[372904369,1752798642646,-987.27,0.00018082,2]
[372904371,1752798642655,-460.0,0.00018082,2]
[372904373,1752798642664,-460.0,0.00018082,2]
[372904375,1752798642674,-460.0,0.00018082,2]
[372904377,1752798642682,-394.3229823,0.00018082,2]
[372904379,1752798642692,-460.0,0.00018082,2]
[372904381,1752798642700,-3190.8,0.00018082,2]
[372904383,1752798642710,-150.05933202,0.00018082,2]
[372904384,1752798642719,-844.15,0.00018082,2]
[372904385,1752798642728,-460.0,0.00018082,2]
[372904386,1752798642738,-1001.67,0.00018082,2]
[372904387,1752798642747,-460.0,0.00018082,2]
[372904388,1752798642756,-792.58,0.00018082,2]
[372904389,1752798642766,-1053.41,0.00018082,2]
[372904390,1752798642775,-460.0,0.00018082,2]
[372904391,1752798642785,-460.0,0.00018082,2]
[372904392,1752798642794,-460.0,0.00018082,2]
[372904393,1752798642805,-460.0,0.00018082,2]
[372904394,1752798642814,-2191.97,0.00018082,2]
[372904395,1752798642824,-460.0,0.00018082,2]
[372904396,1752798642833,-160.0,0.00018117,2]
[372904397,1752798642842,-460.0,0.00018356,2]
[372904398,1752798642851,-460.0,0.00018356,2]
[372904399,1752798642861,-1073.82,0.00018356,2]
[372904400,1752798642869,-1365.5,0.00018356,2]
[372904401,1752798642878,-1658.65,0.00018356,2]
[372904402,1752798642886,-671.81,0.00018356,2]
[372904403,1752798642895,-460.0,0.00018356,2]
[372904404,1752798642904,-460.0,0.00018356,2]
[372904406,1752798642913,-1009.31,0.00018356,2]
[372904409,1752798642923,-460.0,0.00018356,2]
[372904411,1752798642932,-236.5,0.00018356,2]
[372904414,1752798642942,-460.0,0.00018356,2]
[372904415,1752798642951,-460.0,0.00018356,2]
[372904417,1752798642961,-460.0,0.00018356,2]
[372904419,1752798642970,-1119.69,0.00018356,2]
[372904422,1752798642980,-460.0,0.00018356,2]
[372904424,1752798642989,-1811.78,0.00018356,2]
[372904426,1752798643000,-987.27,0.00018356,2]
[372904428,1752798643009,-460.0,0.00018356,2]
[372904429,1752798643019,-460.0,0.00018356,2]
[372904430,1752798643028,-309.07,0.00018356,2]
[372904431,1752798643037,-460.0,0.00018356,2]
[372904432,1752798643047,-3190.8,0.00018356,2]
[372904433,1752798643058,-844.15,0.00018356,2]
[372904434,1752798643068,-597.08,0.00018356,2]
[372904435,1752798643084,-1001.67,0.00018356,2]
[372904436,1752798643094,-296.1077502,0.00018356,2]
[372904437,1752798643104,-792.58,0.00018356,2]
[372904438,1752798643115,-1053.41,0.00018356,2]
[372904439,1752798643124,-460.0,0.00018356,2]
[372904440,1752798643134,-460.0,0.00018356,2]
[372904441,1752798643143,-460.0,0.00018356,2]
[372904442,1752798643154,-460.0,0.00018356,2]
[372904443,1752798643163,-2191.97,0.00018356,2]
[372904444,1752798643172,-270.21104171,0.0001837,2]
[372904445,1752798643181,-160.0,0.0001843,2]
[372904446,1752798643191,-160.0,0.0001843,2]
[372904447,1752798643201,-160.0,0.0001843,2]
[372904448,1752798643211,-839.15451687,0.00018432,2]
[372904449,1752798643220,-12607.95677342,0.00018432,2]
[372904450,1752798643229,-476.16111942,0.00018432,2]
[372904451,1752798643238,-160.0,0.00018432,2]
[372904452,1752798643247,-525.67742785,0.00018432,2]
[372904453,1752798643256,-215.59244943,0.00018432,2]
[372904454,1752798643264,-230.85589339,0.00018432,2]
[372904455,1752798643274,-214.44804168,0.00018432,2]
[372904456,1752798643282,-160.0,0.00018432,2]
[372904457,1752798643291,-160.0,0.00018432,2]
[372904458,1752798643300,-160.0,0.00018432,2]
[372904459,1752798643309,-160.0,0.00018432,2]
[372904460,1752798643318,-160.0,0.00018433,2]
[372904461,1752798643327,-460.0,0.0001863,2]
[372904462,1752798643336,-460.0,0.0001863,2]
[372904463,1752798643345,-1073.82,0.0001863,2]
[372904464,1752798643354,-1365.5,0.0001863,2]
[372904465,1752798643364,-1658.65,0.0001863,2]
[372904466,1752798643373,-671.81,0.0001863,2]
[372904467,1752798643383,-460.0,0.0001863,2]
[372904468,1752798643392,-460.0,0.0001863,2]
[372904469,1752798643401,-1009.31,0.0001863,2]
[372904470,1752798643410,-460.0,0.0001863,2]
[372904471,1752798643420,-460.0,0.0001863,2]
[372904472,1752798643430,-460.0,0.0001863,2]
[372904473,1752798643440,-460.0,0.0001863,2]
[372904474,1752798643449,-1119.69,0.0001863,2]
[372904475,1752798643459,-460.0,0.0001863,2]
[372904476,1752798643468,-1811.78,0.0001863,2]
[372904477,1752798643478,-987.27,0.0001863,2]
[372904478,1752798643487,-460.0,0.0001863,2]
[372904479,1752798643495,-460.0,0.0001863,2]
[372904480,1752798643505,-460.0,0.0001863,2]
[372904481,1752798643514,-3190.8,0.0001863,2]
[372904482,1752798643523,-844.15,0.0001863,2]
[372904483,1752798643532,-1001.67,0.0001863,2]
[372904484,1752798643541,-792.58,0.0001863,2]
[372904485,1752798643551,-1053.41,0.0001863,2]
[372904486,1752798643561,-460.0,0.0001863,2]
[372904487,1752798643570,-460.0,0.0001863,2]
[372904488,1752798643579,-460.0,0.0001863,2]
[372904489,1752798643589,-460.0,0.0001863,2]
[372904490,1752798643598,-2191.97,0.0001863,2]
[372904491,1752798643706,-260.0,0.00018665,2]
[372904492,1752798643715,-460.0,0.00018904,2]
[372904493,1752798643724,-460.0,0.00018904,2]
[372904494,1752798643733,-1073.82,0.00018904,2]
[372904495,1752798643741,-1365.5,0.00018904,2]
[372904496,1752798643751,-1658.65,0.00018904,2]
[372904497,1752798643760,-671.81,0.00018904,2]
[372904498,1752798643769,-460.0,0.00018904,2]
[372904499,1752798643778,-460.0,0.00018904,2]
[372904500,1752798643788,-1009.31,0.00018904,2]
[372904501,1752798643798,-460.0,0.00018904,2]
[372904502,1752798643809,-460.0,0.00018904,2]
[372904503,1752798643819,-460.0,0.00018904,2]
[372904504,1752798643828,-460.0,0.00018904,2]
[372904505,1752798643838,-1119.69,0.00018904,2]
[372904506,1752798643847,-460.0,0.00018904,2]
[372904507,1752798643857,-1811.78,0.00018904,2]
[372904508,1752798643866,-987.27,0.00018904,2]
[372904509,1752798643875,-460.0,0.00018904,2]
[372904510,1752798643884,-460.0,0.00018904,2]
[372904511,1752798643893,-460.0,0.00018904,2]
[372904512,1752798643902,-3190.8,0.00018904,2]
[372904513,1752798643912,-844.15,0.00018904,2]
[372904514,1752798643921,-1001.67,0.00018904,2]
[372904515,1752798643931,-792.58,0.00018904,2]
[372904516,1752798643940,-1053.41,0.00018904,2]
[372904517,1752798643949,-460.0,0.00018904,2]
[372904518,1752798643958,-460.0,0.00018904,2]
[372904519,1752798643967,-460.0,0.00018904,2]
[372904520,1752798643976,-460.0,0.00018904,2]
[372904521,1752798643985,-2191.97,0.00018904,2]
[372904522,1752798643994,-500.0,0.00018935,2]
[372904523,1752798644005,-303.55845171,0.00018961,2]
[372904524,1752798644014,-314.0,0.00018981,2]
[372904525,1752798644023,-11636.72331745,0.00019,20]
[372904526,1752798644032,-460.0,0.00019178,2]
[372904527,1752798644042,-460.0,0.00019178,2]
[372904528,1752798644052,-1073.82,0.00019178,2]
[372904529,1752798644061,-1365.5,0.00019178,2]
[372904530,1752798644070,-1658.65,0.00019178,2]
[372904531,1752798644079,-671.81,0.00019178,2]
[372904532,1752798644088,-460.0,0.00019178,2]
[372904533,1752798644097,-460.0,0.00019178,2]
[372904534,1752798644110,-1009.31,0.00019178,2]
[372904535,1752798644119,-460.0,0.00019178,2]
[372904536,1752798644128,-460.0,0.00019178,2]
[372904537,1752798644137,-460.0,0.00019178,2]
[372904538,1752798644146,-460.0,0.00019178,2]
[372904539,1752798644156,-1119.69,0.00019178,2]
[372904540,1752798644165,-460.0,0.00019178,2]
[372904541,1752798644174,-1811.78,0.00019178,2]
[372904542,1752798644184,-987.27,0.00019178,2]
[372904543,1752798644194,-460.0,0.00019178,2]
[372904544,1752798644203,-460.0,0.00019178,2]
[372904545,1752798644212,-460.0,0.00019178,2]
[372904546,1752798644221,-3190.8,0.00019178,2]
[372904547,1752798644231,-500.0,0.00019178,2]
[372904548,1752798644241,-844.15,0.00019178,2]
[372904549,1752798644250,-1001.67,0.00019178,2]
[372904550,1752798644259,-792.58,0.00019178,2]
[372904551,1752798644268,-1053.41,0.00019178,2]
[372904552,1752798644278,-460.0,0.00019178,2]
[372904553,1752798644287,-460.0,0.00019178,2]
[372904554,1752798644296,-460.0,0.00019178,2]
[372904555,1752798644306,-460.0,0.00019178,2]
[372904556,1752798644316,-2191.97,0.00019178,2]
[372904557,1752798644325,-178.009889,0.00019178,2]
[372904558,1752798644334,-5000.0,0.00019178,2]
[372904559,1752798644343,-500.0,0.00019209,2]
[372904560,1752798644353,-180.0,0.00019213,2]
[372904561,1752798644362,-608.26729648,0.00019319,2]
[372904562,1752798644372,-284.3208167,0.00019326,2]
[372904563,1752798644381,-65754.59810566,0.00019329,2]
[372904564,1752798644390,-500.0,0.00019373,2]
[372904565,1752798644400,-500.0,0.00019373,2]
[372904566,1752798644409,-500.0,0.00019373,2]
[372904567,1752798644418,-500.0,0.00019373,2]
[372904568,1752798644427,-503.46839488,0.00019373,2]
[372904569,1752798644437,-501.03534537,0.00019373,2]
[372904570,1752798644446,-500.0,0.00019373,2]
[372904571,1752798644456,-500.0,0.00019373,2]
[372904572,1752798644464,-375.97667728,0.00019373,2]
[372904573,1752798644473,-500.0,0.00019373,2]
[372904574,1752798644482,-500.0,0.00019373,2]
[372904575,1752798644490,-460.0,0.00019452,2]
[372904576,1752798644500,-209.6522192,0.00019452,2]
[372904577,1752798644509,-151.0,0.00019452,2]
[372904578,1752798644518,-607.0,0.00019452,2]
[372904579,1752798644528,-248.34584934,0.00019452,2]
[372904580,1752798644537,-151.0,0.00019452,2]
[372904581,1752798644546,-1073.82,0.00019452,2]
[372904582,1752798644557,-1365.5,0.00019452,2]
[372904583,1752798644566,-1658.65,0.00019452,2]
[372904584,1752798644578,-671.81,0.00019452,2]
[372904585,1752798644586,-460.0,0.00019452,2]
[372904586,1752798644596,-460.0,0.00019452,2]
[372904587,1752798644605,-460.0,0.00019452,2]
[372904588,1752798644614,-1009.31,0.00019452,2]
[372904589,1752798644624,-546.06407736,0.00019452,2]
[372904590,1752798644633,-460.0,0.00019452,2]
[372904591,1752798644643,-460.0,0.00019452,2]
[372904592,1752798644652,-1119.69,0.00019452,2]
[372904593,1752798644661,-460.0,0.00019452,2]
[372904594,1752798644670,-1811.78,0.00019452,2]
[372904595,1752798644680,-987.27,0.00019452,2]
[372904596,1752798644689,-460.0,0.00019452,2]
[372904597,1752798644698,-460.0,0.00019452,2]
[372904598,1752798644709,-460.0,0.00019452,2]
[372904599,1752798644718,-3190.8,0.00019452,2]
[372904600,1752798644728,-844.15,0.00019452,2]
[372904601,1752798644738,-1001.67,0.00019452,2]
[372904602,1752798644748,-792.58,0.00019452,2]
[372904603,1752798644757,-1053.41,0.00019452,2]
[372904604,1752798644767,-460.0,0.00019452,2]
[372904605,1752798644776,-460.0,0.00019452,2]
[372904606,1752798644786,-460.0,0.00019452,2]
[372904607,1752798644795,-460.0,0.00019452,2]
[372904608,1752798644807,-2191.97,0.00019452,2]
[372904609,1752798644816,-500.0,0.00019483,2]
[372904610,1752798644826,-607.0,0.00019726,2]
[372904611,1752798644835,-219.8559037,0.00019726,2]
[372904612,1752798644844,-460.0,0.00019726,2]
[372904613,1752798644854,-1073.82,0.00019726,2]
[372904614,1752798644863,-1365.5,0.00019726,2]
[372904615,1752798644872,-1658.65,0.00019726,2]
[372904616,1752798644882,-671.81,0.00019726,2]
[372904617,1752798644891,-460.0,0.00019726,2]
[372904618,1752798644899,-460.0,0.00019726,2]
[372904619,1752798644906,-460.0,0.00019726,2]
[372904620,1752798644914,-1009.31,0.00019726,2]
[372904621,1752798644921,-330.64,0.00019726,2]
[372904622,1752798644929,-294.26,0.00019726,2]
[372904623,1752798644938,-1119.69,0.00019726,2]
[372904624,1752798644947,-460.0,0.00019726,2]
[372904625,1752798644956,-1811.78,0.00019726,2]
[372904626,1752798644965,-987.27,0.00019726,2]
[372904627,1752798644974,-460.0,0.00019726,2]
[372904628,1752798644984,-460.0,0.00019726,2]
[372904629,1752798644994,-460.0,0.00019726,2]
[372904630,1752798645004,-3190.8,0.00019726,2]
[372904631,1752798645014,-844.15,0.00019726,2]
[372904632,1752798645023,-1001.67,0.00019726,2]
[372904633,1752798645033,-792.58,0.00019726,2]
[372904634,1752798645042,-1053.41,0.00019726,2]
[372904635,1752798645051,-460.0,0.00019726,2]